bitfinex/quotes_SOLUSD_20240702
["timestamp","ask_amount","ask_price","bid_price","bid_amount"]
[1719948847210,0.8713355,153.06,153.01,13.52]
[1719948848108,0.8713355,153.06,153.02,13.52]
[1719948848307,0.8713355,153.06,153.03,13.52]
[1719948849014,0.8713355,153.06,153.04,13.52]
[1719948849391,0.8713355,153.06,153.03,13.52]
[1719948850505,0.8713355,153.06,153.05,13.52]
[1719948853721,0.8713355,153.06,153.01,100.0]
[1719948853922,0.8713355,153.06,153.01,126.88]
[1719948855022,0.8713355,153.06,153.03,100.0]
[1719948855229,0.8713355,153.06,153.04,26.88]
[1719948859325,0.8713355,153.06,153.05,1.30633677]
[1719948860841,0.8713355,153.06,153.04,26.88]
[1719948861036,0.8713355,153.06,153.02,26.88]
[1719948865236,0.8713355,153.06,152.99,26.88]
[1719948866234,17.4122355,153.06,152.99,26.88]
[1719948866442,17.4122355,153.06,152.96,26.88]
[1719948868329,17.4122355,153.06,152.97,100.0]
[1719948869033,17.4122355,153.06,152.97,200.0]
[1719948870346,17.4122355,153.06,152.96,26.88]
[1719948872745,17.4122355,153.06,152.97,200.0]
[1719948874940,17.4122355,153.06,152.99,126.88]
[1719948881734,17.4122355,153.06,153.05,13.44]
[1719948884233,0.8713355,153.06,153.05,13.44]
[1719948885430,0.8713355,153.06,153.0,100.0]
[1719948885631,0.8713355,153.06,153.05,13.44]
[1719948886345,0.8713355,153.06,153.04,13.44]
[1719948886550,0.8713355,153.06,152.97,105.09677019]
[1719948886858,0.8713355,153.06,153.03,13.44]
[1719948887732,0.8713355,153.06,152.98,26.89]
[1719948889155,0.8713355,153.06,152.99,100.0]
[1719948893278,0.8713355,153.06,152.99,109.81542936]
[1719948893464,0.8713355,153.06,153.01,26.89]
[1719948893771,0.8713355,153.06,153.01,236.70542936]
[1719948894877,0.8713355,153.06,153.01,226.89]
[1719948895760,0.8713355,153.06,153.01,126.89]
[1719948896092,0.8713355,153.06,153.01,26.89]
[1719948896761,0.8713355,153.06,153.01,9.8120912]
[1719948897072,0.8713355,153.06,152.97,36.7020912]
[1719948897456,6.6058,153.04,152.97,26.89]
[1719948897771,6.6058,153.04,152.95,9.8120912]
[1719948897980,6.6058,153.04,152.93,9.8120912]
[1719948898171,6.6058,153.04,152.92,26.89]
[1719948898172,20.0,153.03,152.92,26.89]
[1719948898369,16.1216,153.02,152.92,26.89]
[1719948900381,6.2527,153.01,152.9,100.0]
[1719948900765,15.3026,153.0,152.9,100.0]
[1719948900966,15.3026,153.0,152.89,26.89]
[1719948902360,15.3026,153.0,152.92,26.89]
[1719948903486,15.3026,153.0,152.89,100.0]
[1719948903685,15.3026,153.0,152.9,26.89]
[1719948903881,15.3026,153.0,152.9,126.89]
[1719948904870,15.3026,153.0,152.92,100.0]
[1719948905170,15.3026,153.0,152.93,26.89]
[1719948908486,15.3026,153.0,152.94,100.0]
[1719948909584,15.3026,153.0,152.96,26.89]
[1719948910589,15.3026,153.0,152.93,26.89]
[1719948912572,15.3026,153.0,152.9,136.71469066]
[1719948912974,15.3026,153.0,152.9,126.89]
[1719948913586,15.3026,153.0,152.9,26.89]
[1719948916774,15.3026,153.0,152.88,126.89]
[1719948918592,15.3026,153.0,152.9,100.0]
[1719948921801,15.3026,153.0,152.93,100.0]
[1719948922003,15.3026,153.0,152.94,26.89]
[1719948928610,21.6221,153.05,152.97,126.89]
[1719948929688,21.6221,153.05,153.03,13.44]
[1719948930693,21.6221,153.05,153.04,13.44]
[1719948931808,21.6221,153.05,152.99,100.0]
[1719948934389,0.8713355,153.06,153.04,26.89]
[1719948940935,0.8713355,153.06,153.05,100.0]
[1719948949621,15.3894,153.14,153.07,100.0]
[1719948949819,15.3894,153.14,153.09,26.89]
[1719948951323,15.3894,153.14,153.05,100.0]
[1719948953622,15.3894,153.14,153.07,26.89]
[1719948953918,15.3894,153.14,153.13,13.43]
[1719948954298,15.3894,153.14,153.12,13.43]
[1719948954728,15.3894,153.14,153.13,13.43]
[1719948960537,15.3894,153.14,153.07,200.0]
[1719948960839,15.3894,153.14,153.13,13.43]
[1719948963625,6.5251,153.15,153.13,13.43]
[1719948964336,6.5251,153.15,153.14,13.43]
[1719948964836,6.5251,153.15,153.07,200.0]
[1719948965035,6.5251,153.15,153.14,13.43]
[1719948965838,16.5102,153.18,153.14,13.43]
[1719948966141,16.5102,153.18,153.09,100.0]
[1719948966327,0.8713355,153.22,153.12,22.9927]
[1719948966535,0.8713355,153.22,153.21,13.43]
[1719948968228,0.8713355,153.22,153.16,100.0]
[1719948968423,0.8713355,153.22,153.21,13.43]
[1719948970644,0.8713355,153.22,153.21,14.10401302]
[1719948970971,0.8713355,153.22,153.21,13.43]
[1719948974051,22.1777,153.33,153.21,113.43]
[1719948974260,22.1777,153.33,153.21,100.0]
[1719948974556,22.1777,153.33,153.26,13.43]
[1719948975463,28.6996,153.33,153.26,13.43]
[1719948975755,27.6996,153.33,153.26,13.43]
[1719948975932,6.5224,153.32,153.26,13.43]
[1719948976250,13.43,153.28,153.17,100.0]
[1719948976437,19.65,153.31,153.17,100.0]
[1719948976438,13.43,153.27,153.17,100.0]
[1719948976628,19.834,153.27,153.22,13.43]
[1719948978841,16.5894,153.26,153.22,13.43]
[1719948979134,16.5894,153.26,153.15,122.5534]
[1719948979342,13.43,153.24,153.19,13.43]
[1719948979851,16.5894,153.26,153.19,13.43]
[1719948980033,33.43,153.25,153.19,13.43]
[1719948980636,20.0,153.25,153.21,13.43]
[1719948980850,20.0,153.25,153.15,100.0]
[1719948980851,16.5894,153.26,153.22,13.43]
[1719948982356,16.5894,153.26,153.23,13.43]
[1719948984937,16.5894,153.26,153.17,100.0]
[1719948985139,16.5894,153.26,153.24,13.43]
[1719948985848,36.2394,153.26,153.24,13.43]
[1719948986042,36.2394,153.26,153.04,25.0]
[1719948986043,16.6445,153.23,153.11,15.2049]
[1719948986343,16.6445,153.23,153.1,19.834]
[1719948986344,13.43,153.2,153.1,19.834]
[1719948986543,13.43,153.2,153.15,13.43]
[1719948987156,13.43,153.2,153.14,13.43]
[1719948987539,13.43,153.2,153.08,100.0]
[1719948987751,6.5268,153.22,153.08,100.0]
[1719948987956,20.0,153.21,153.09,26.85]
[1719948990544,6.4969,153.2,153.09,26.85]
[1719948993237,16.3127,153.19,153.07,15.4954]
[1719948995339,16.3127,153.19,153.1,100.0]
[1719948995553,16.3127,153.19,153.11,26.85]
[1719948996354,16.3127,153.19,153.12,100.0]
[1719948996553,2.31039716,153.26,153.14,26.85]
[1719948996554,15.4805,153.23,153.14,26.85]
[1719948997041,15.4805,153.23,153.14,126.85]
[1719948997548,15.4805,153.23,153.14,26.85]
[1719948998545,15.4805,153.23,153.1,100.0]
[1719948998853,15.4805,153.23,153.11,26.85]
[1719948999158,20.0,153.22,153.11,26.85]
[1719948999561,16.5991,153.2,153.08,26.85]
[1719949002665,16.5991,153.2,153.14,26.85]
[1719949003748,15.3642,153.24,153.15,100.0]
[1719949004147,15.3642,153.24,153.14,26.85]
[1719949005160,15.3642,153.24,153.11,100.0]
[1719949005374,15.3642,153.24,153.14,26.85]
[1719949006185,20.0,153.23,153.14,26.85]
[1719949007962,20.0,153.23,153.12,26.85]
[1719949008166,6.0355,153.22,153.12,26.85]
[1719949010363,6.0558,153.2,153.08,9.80469458]
[1719949010566,6.0558,153.2,153.07,152.15009458]
[1719949010972,20.0,153.19,153.07,152.15009458]
[1719949011186,16.1885,153.18,153.07,36.65469458]
[1719949011583,6.4022,153.17,153.07,9.80469458]
[1719949011900,16.6066,153.13,153.07,9.80469458]
[1719949012395,25.0,153.24,153.02,116.6495]
[1719949012396,23.0088,153.22,153.12,100.0]
[1719949012597,23.0088,153.22,153.15,26.85]
[1719949015798,23.0088,153.22,153.12,26.85]
[1719949017787,15.558,153.28,153.18,26.85]
[1719949018093,15.558,153.28,153.19,20.0]
[1719949019096,15.558,153.28,153.18,26.85]
[1719949019275,15.558,153.28,153.19,20.0]
[1719949020303,35.208,153.28,153.16,20.0]
[1719949020480,26.0788,153.26,153.16,20.0]
[1719949020806,15.9096,153.25,153.14,20.0]
[1719949021107,20.0,153.24,153.11,9.78410489]
[1719949021292,20.0,153.24,153.12,36.63410489]
[1719949021488,20.0,153.24,153.12,26.85]
[1719949021890,39.65,153.24,153.12,26.85]
[1719949022103,21.7909,153.23,153.12,26.85]
[1719949023020,21.7909,153.23,153.13,109.78410489]
[1719949023191,21.7909,153.23,153.15,26.85]
[1719949024202,21.7909,153.23,153.16,20.0]
[1719949025615,21.445,153.29,153.16,120.0]
[1719949025808,21.445,153.29,153.18,26.85]
[1719949026007,21.445,153.29,153.19,20.0]
[1719949027786,0.03879606,153.34,153.23,100.0]
[1719949027993,0.03879606,153.34,153.24,46.85]
[1719949028613,0.03879606,153.34,153.24,20.0]
[1719949028805,0.03879606,153.34,153.22,20.0]
[1719949029321,6.56039606,153.34,153.22,20.0]
[1719949030214,20.0,153.33,153.22,20.0]
[1719949030588,26.5221,153.33,153.22,20.0]
[1719949030789,20.0,153.33,153.22,20.0]
[1719949030986,39.68879606,153.34,153.22,20.0]
[1719949031188,6.5219,153.33,153.22,20.0]
[1719949031414,20.0,153.32,153.22,20.0]
[1719949032417,26.5225,153.32,153.22,20.0]
[1719949032621,15.4252,153.31,153.22,20.0]
[1719949032788,0.03879606,153.34,153.24,100.0]
[1719949032991,0.03879606,153.34,153.26,26.85]
[1719949033802,0.03879606,153.34,153.27,20.0]
[1719949037721,0.03879606,153.34,153.23,22.1036]
[1719949037889,0.03879606,153.34,153.24,20.0]
[1719949038910,0.03879606,153.34,153.25,26.85]
[1719949039625,0.03879606,153.34,153.26,20.0]
[1719949039822,19.68879606,153.34,153.19,22.4837]
[1719949040123,26.5222,153.33,153.21,26.85]
[1719949040420,20.0,153.33,153.22,20.0]
[1719949044921,20.03879606,153.34,153.22,20.0]
[1719949045124,46.21039606,153.34,153.22,20.0]
[1719949045527,15.013,153.31,153.22,20.0]
[1719949048334,20.03879606,153.34,153.23,6.6459]
[1719949048547,20.03879606,153.34,153.24,26.85]
[1719949049615,26.56019606,153.34,153.24,26.85]
[1719949050017,6.56019606,153.34,153.24,26.85]
[1719949050441,0.03879606,153.34,153.24,26.85]
[1719949051114,19.68879606,153.34,153.24,26.85]
[1719949051417,6.5219,153.33,153.22,20.0]
[1719949051624,26.1719,153.33,153.22,20.0]
[1719949051829,0.03879606,153.34,153.22,20.0]
[1719949051830,6.56039606,153.34,153.22,20.0]
[1719949052341,26.21039606,153.34,153.22,20.0]
[1719949054426,19.68879606,153.34,153.22,20.0]
[1719949054632,0.03879606,153.34,153.22,20.0]
[1719949057629,6.56029606,153.34,153.22,20.0]
[1719949058134,0.03879606,153.34,153.26,100.0]
[1719949058324,0.03879606,153.34,153.29,26.85]
[1719949058533,0.03879606,153.34,153.3,15.9037]
[1719949058842,0.03879606,153.34,153.3,115.9037]
[1719949059352,0.03879606,153.34,153.32,26.85]
[1719949061322,0.03879606,153.34,153.33,20.0]
[1719949068246,0.8713355,153.37,153.34,21.4709]
[1719949068429,0.8713355,153.37,153.36,26.85]
[1719949068637,0.8713355,153.37,153.36,46.85]
[1719949068833,0.8713355,153.37,153.36,48.15375626]
[1719949069035,0.8713355,153.37,153.36,46.85]
[1719949072740,0.8713355,153.37,153.36,26.85]
[1719949072951,0.8713355,153.37,153.33,26.85]
[1719949073256,0.8713355,153.37,153.34,20.0]
[1719949073626,0.8713355,153.37,153.33,26.85]
[1719949075549,0.8713355,153.37,153.3,16.0091]
[1719949075764,0.8713355,153.37,153.3,42.8591]
[1719949076535,0.8713355,153.37,153.3,26.85]
[1719949081849,0.8713355,153.37,153.31,1.30187645]
[1719949082870,0.8713355,153.37,153.33,26.85]
[1719949083253,0.8713355,153.37,153.34,1.30162174]
[1719949083860,0.8713355,153.37,153.33,26.85]
[1719949084060,0.8713355,153.37,153.31,26.85]
[1719949086250,0.8713355,153.37,153.29,100.0]
[1719949086452,0.8713355,153.37,153.31,26.85]
[1719949086965,6.518,153.42,153.4,18.5163835]
[1719949087774,6.5184,153.41,153.4,18.5163835]
[1719949087956,6.5184,153.41,153.31,26.85]
[1719949088348,12.6846,153.4,153.28,26.85]
[1719949089462,106.61280816,153.44,153.26,26.85]
[1719949089463,19.65,153.38,153.26,26.85]
[1719949089659,12.6764,153.37,153.22,15.9676]
[1719949089966,14.4546,153.35,153.24,26.85]
[1719949095880,20.9756,153.35,153.24,26.85]
[1719949096077,6.5214,153.34,153.24,26.85]
[1719949096381,20.9757,153.35,153.25,1.30339217]
[1719949096550,6.5214,153.34,153.25,1.30339217]
[1719949096755,14.4546,153.32,153.2,9.77638766]
[1719949097052,20.9772,153.32,153.2,26.85]
[1719949097465,14.4546,153.32,153.2,26.85]
[1719949097690,6.0373,153.31,153.2,26.85]
[1719949097856,12.5604,153.31,153.2,26.85]
[1719949098055,12.5604,153.31,153.18,15.8472]
[1719949098251,12.5604,153.31,153.18,26.85]
[1719949098252,6.5231,153.3,153.18,26.85]
[1719949098476,14.4546,153.29,153.18,26.85]
[1719949099652,6.1283,153.28,153.18,26.85]
[1719949102081,12.6524,153.28,153.18,26.85]
[1719949102378,6.1283,153.28,153.18,26.85]
[1719949102968,32.3023,153.28,153.18,26.85]
[1719949104369,6.1283,153.28,153.18,26.85]
[1719949105071,6.1283,153.28,153.18,143.4207]
[1719949105270,6.1283,153.28,153.21,26.85]
[1719949111590,14.4546,153.29,153.21,26.85]
[1719949111764,14.4546,153.29,153.28,13.4]
[1719949112876,6.0554,153.31,153.28,13.4]
[1719949113065,6.0554,153.31,153.3,13.4]
[1719949113379,6.5452,153.36,153.3,13.4]
[1719949113570,6.5452,153.36,153.28,13.4]
[1719949113571,6.5452,153.36,153.34,13.4]
[1719949113874,6.5452,153.36,153.28,13.4]
[1719949113875,6.5452,153.36,153.28,26.78]
[1719949116077,9.26168548,153.41,153.31,26.78]
[1719949116078,20.7732,153.41,153.31,26.78]
[1719949118966,20.7732,153.41,153.31,126.78]
[1719949119891,20.7732,153.41,153.31,26.78]
[1719949122691,20.7732,153.41,153.31,126.78]
[1719949122897,20.7732,153.41,153.31,26.78]
[1719949123083,20.7732,153.41,153.31,126.78]
[1719949128806,20.7732,153.41,153.34,126.78]
[1719949130397,20.7732,153.41,153.34,26.78]
[1719949132593,20.7732,153.41,153.31,26.78]
[1719949134000,20.7732,153.41,153.38,13.38]
[1719949134513,20.7732,153.41,153.4,13.38]
[1719949134879,127.51590816,153.44,153.4,13.38]
[1719949135095,127.51590816,153.44,153.41,13.38]
[1719949136010,127.51590816,153.44,153.36,53.52]
[1719949136305,127.51590816,153.44,153.4,13.38]
[1719949136503,127.51590816,153.44,153.32,115.6391]
[1719949136504,140.89590816,153.44,153.38,13.38]
[1719949136889,140.89590816,153.44,153.39,13.38]
[1719949137505,127.51590816,153.44,153.39,13.38]
[1719949138283,127.51590816,153.44,153.32,115.6391]
[1719949138497,127.51590816,153.44,153.39,13.38]
[1719949138702,127.51590816,153.44,153.32,115.6391]
[1719949138703,127.51590816,153.44,153.36,53.52]
[1719949138907,127.51590816,153.44,153.39,100.0]
[1719949138908,106.61280816,153.44,153.39,100.0]
[1719949139111,106.61280816,153.44,153.43,13.38]
[1719949139894,106.61280816,153.44,153.37,100.0]
[1719949140093,106.61280816,153.44,153.43,13.38]
[1719949140296,106.61280816,153.44,153.36,69.4399]
[1719949140488,106.61280816,153.44,153.43,13.38]
[1719949141004,106.61280816,153.44,153.43,126.76]
[1719949141206,0.8713355,153.53,153.45,115.355]
[1719949141411,0.8713355,153.53,153.52,13.38]
[1719949141590,0.8713355,153.53,153.43,100.0]
[1719949141789,0.8713355,153.53,153.46,100.0]
[1719949141992,0.8713355,153.53,153.44,126.72]
[1719949142205,0.8713355,153.53,153.46,100.0]
[1719949142400,0.8713355,153.53,153.47,42.075]
[1719949142603,0.8713355,153.53,153.51,26.72]
[1719949142788,6.0659,153.61,153.52,100.0]
[1719949142993,6.0659,153.61,153.46,100.0]
[1719949143194,6.0659,153.61,153.48,126.72]
[1719949143395,6.0659,153.61,153.5,100.0]
[1719949143802,5.0659,153.61,153.5,100.0]
[1719949144008,5.0659,153.61,153.52,100.0]
[1719949144891,5.0659,153.61,153.51,26.72]
[1719949145296,5.0659,153.61,153.52,100.0]
[1719949146106,5.0659,153.61,153.51,26.72]
[1719949146715,13.30461462,153.67,153.56,100.0]
[1719949147016,6.4969,153.67,153.59,100.0]
[1719949147229,6.4969,153.67,153.57,126.72]
[1719949152416,6.4969,153.67,153.59,100.0]
[1719949160027,13.0043,153.67,153.57,26.72]
[1719949160213,6.4969,153.67,153.57,26.72]
[1719949160612,20.9625,153.66,153.56,6.5067]
[1719949160813,20.9625,153.66,153.54,126.72]
[1719949161329,14.4546,153.66,153.54,126.72]
[1719949162237,20.9626,153.66,153.54,126.72]
[1719949162728,14.4546,153.66,153.54,126.72]
[1719949164824,20.9625,153.66,153.54,126.72]
[1719949165627,6.5083,153.65,153.54,126.72]
[1719949166021,14.4546,153.66,153.54,126.72]
[1719949166821,20.9627,153.66,153.54,126.72]
[1719949167510,14.4546,153.66,153.54,126.72]
[1719949167709,20.9625,153.66,153.54,26.72]
[1719949168120,14.4546,153.63,153.51,26.72]
[1719949168321,14.4546,153.63,153.5,100.0]
[1719949168526,6.5098,153.62,153.5,100.0]
[1719949168730,6.5098,153.62,153.48,47.43128143]
[1719949168731,20.9646,153.61,153.48,126.72]
[1719949168948,6.0668,153.6,153.48,126.72]
[1719949170045,12.5772,153.6,153.48,126.72]
[1719949170631,6.0668,153.6,153.48,126.72]
[1719949171021,12.5772,153.6,153.48,126.72]
[1719949171224,6.0668,153.6,153.48,126.72]
[1719949173925,12.5773,153.6,153.48,126.72]
[1719949174837,6.0668,153.6,153.48,126.72]
[1719949175450,12.5772,153.6,153.48,126.72]
[1719949175742,6.0668,153.6,153.48,126.72]
[1719949176317,12.5773,153.6,153.48,126.72]
[1719949177408,6.0668,153.6,153.48,126.72]
[1719949177629,12.5772,153.6,153.48,126.72]
[1719949179112,6.0668,153.6,153.48,126.72]
[1719949179313,6.0668,153.6,153.5,100.0]
[1719949179512,6.0668,153.6,153.51,26.72]
[1719949179738,6.0668,153.6,153.52,100.0]
[1719949181945,6.0668,153.6,153.54,126.72]
[1719949182247,14.4546,153.61,153.55,100.0]
[1719949182545,6.4383,153.64,153.55,100.0]
[1719949184839,6.4383,153.64,153.57,126.72]
[1719949186637,6.4383,153.64,153.57,26.72]
[1719949189437,6.4383,153.64,153.54,26.72]
[1719949195338,6.4383,153.64,153.55,100.0]
[1719949195521,6.4383,153.64,153.54,26.72]
[1719949195735,6.4383,153.64,153.61,13.34]
[1719949197648,6.4383,153.64,153.63,13.34]
[1719949198463,6.4383,153.64,153.6,53.36]
[1719949199757,6.4383,153.64,153.58,100.0]
[1719949199942,6.4383,153.64,153.6,26.67]
[1719949203254,0.8713355,153.68,153.6,26.67]
[1719949203429,0.8713355,153.68,153.63,26.67]
[1719949203627,0.8713355,153.68,153.66,116.323]
[1719949203832,98.87976635,153.7,153.66,116.323]
[1719949203833,98.87976635,153.7,153.67,26.67]
[1719949204335,98.87976635,153.7,153.67,126.67]
[1719949204537,98.87976635,153.7,153.69,100.0]
[1719949204538,57.12846177,153.7,153.69,100.0]
[1719949204742,0.07976,153.75,153.69,100.0]
[1719949205155,0.07976,153.75,153.73,26.67]
[1719949206146,0.07976,153.75,153.7,26.67]
[1719949210950,0.07976,153.75,153.63,100.0]
[1719949210951,6.039,153.74,153.63,100.0]
[1719949211147,6.039,153.74,153.62,26.67]
[1719949211666,6.5049,153.73,153.62,26.67]
[1719949212365,6.039,153.74,153.65,26.67]
[1719949213359,6.5058,153.71,153.6,100.0]
[1719949213662,6.039,153.74,153.61,26.67]
[1719949214157,12.5435,153.74,153.61,26.67]
[1719949214540,12.5435,153.74,153.6,100.0]
[1719949214541,25.619,153.74,153.6,100.0]
[1719949214737,6.5056,153.72,153.59,26.67]
[1719949215331,25.619,153.74,153.59,26.67]
[1719949215332,6.5058,153.71,153.59,26.67]
[1719949215640,6.1669,153.7,153.59,26.67]
[1719949215836,14.4546,153.68,153.58,126.67]
[1719949217360,14.4546,153.68,153.58,26.67]
[1719949218136,14.4546,153.68,153.55,26.67]
[1719949218574,26.1426,153.67,153.55,26.67]
[1719949218739,26.5626,153.66,153.55,26.67]
[1719949219055,33.0705,153.66,153.55,26.67]
[1719949219262,6.5083,153.65,153.55,26.67]
[1719949219980,6.5092,153.63,153.52,26.67]
[1719949220143,6.5105,153.6,153.5,26.67]
[1719949220344,21.0172,153.62,153.48,100.0]
[1719949220645,21.0172,153.62,153.5,126.67]
[1719949220839,21.0172,153.62,153.5,26.67]
[1719949221179,27.5271,153.62,153.5,26.67]
[1719949221342,21.0172,153.62,153.5,26.67]
[1719949221547,6.5101,153.61,153.5,26.67]
[1719949221769,6.5104,153.6,153.5,26.67]
[1719949222449,21.0172,153.62,153.5,26.67]
[1719949222853,47.1069,153.62,153.5,26.67]
[1719949223266,6.51,153.61,153.5,26.67]
[1719949223778,21.0172,153.62,153.5,26.67]
[1719949224476,21.0172,153.62,153.5,126.67]
[1719949224883,27.5268,153.62,153.5,26.67]
[1719949225384,6.51,153.61,153.5,26.67]
[1719949226055,27.5268,153.62,153.5,26.67]
[1719949226483,6.51,153.61,153.5,26.67]
[1719949226777,6.5139,153.52,153.4,100.0]
[1719949226953,6.5152,153.49,153.41,26.67]
[1719949227154,6.5147,153.5,153.41,26.67]
[1719949227581,6.5143,153.51,153.41,26.67]
[1719949228468,6.2455,153.53,153.41,26.67]
[1719949228789,12.7589,153.53,153.4,100.0]
[1719949228992,12.7589,153.53,153.42,26.67]
[1719949229286,6.5138,153.52,153.42,26.67]
[1719949229452,6.5139,153.52,153.42,26.67]
[1719949230015,6.5139,153.52,153.38,100.0]
[1719949230290,12.7589,153.53,153.38,100.0]
[1719949230805,6.2455,153.53,153.38,100.0]
[1719949230974,6.5139,153.52,153.38,100.0]
[1719949232087,6.2455,153.53,153.42,100.0]
[1719949232388,6.2455,153.53,153.41,100.0]
[1719949232592,6.2455,153.53,153.43,100.0]
[1719949232799,6.2455,153.53,153.41,100.0]
[1719949232977,6.2455,153.53,153.43,100.0]
[1719949233173,6.2455,153.53,153.41,100.0]
[1719949233740,6.2455,153.53,153.43,100.0]
[1719949234214,6.2455,153.53,153.45,100.0]
[1719949235169,6.2455,153.53,153.43,106.5898]
[1719949235674,6.2455,153.53,153.42,16.3099]
[1719949236369,12.759,153.53,153.42,16.3099]
[1719949236575,6.2455,153.53,153.42,16.3099]
[1719949237297,12.7589,153.53,153.42,16.3099]
[1719949238805,6.2455,153.53,153.42,16.3099]
[1719949239187,6.2455,153.53,153.39,136.4235]
[1719949239503,12.759,153.53,153.39,136.4235]
[1719949239681,6.2455,153.53,153.39,136.4235]
[1719949240084,6.2455,153.53,153.36,366.91110151]
[1719949240085,6.515,153.5,153.36,273.07220151]
[1719949240284,6.5151,153.49,153.36,266.2611]
[1719949241984,6.1389,153.48,153.36,260.1]
[1719949243495,6.1389,153.48,153.35,100.0]
[1719949243496,14.4546,153.47,153.35,100.0]
[1719949243699,20.9708,153.47,153.33,100.0]
[1719949244002,6.5165,153.46,153.33,100.0]
[1719949244699,14.4546,153.47,153.36,100.0]
[1719949245109,14.4546,153.47,153.33,6.81517956]
[1719949245292,6.5179,153.43,153.3,117.5318355]
[1719949246186,6.5173,153.44,153.3,117.5318355]
[1719949246385,6.5168,153.45,153.3,117.5318355]
[1719949246594,6.1908,153.46,153.32,100.0]
[1719949247197,12.7071,153.46,153.32,100.0]
[1719949247393,6.5167,153.45,153.3,124.34855406]
[1719949247593,6.5167,153.45,153.3,117.5318355]
[1719949248496,6.5186,153.41,153.3,0.8713355]
[1719949248698,40.5722,153.44,153.3,0.8713355]
[1719949249028,6.5181,153.42,153.3,0.8713355]
[1719949249310,47.0894,153.44,153.3,100.8713355]
[1719949249694,6.5179,153.43,153.3,0.8713355]
[1719949249895,40.5722,153.44,153.31,26.77]
[1719949250203,47.0894,153.44,153.31,26.77]
[1719949250387,40.5722,153.44,153.31,26.77]
[1719949250588,27.0896,153.44,153.31,26.77]
[1719949251603,6.5176,153.43,153.31,26.77]
[1719949252192,20.5722,153.44,153.31,26.77]
[1719949252193,6.5181,153.42,153.31,26.77]
[1719949252516,6.5181,153.42,153.3,0.8713355]
[1719949252810,6.5186,153.41,153.3,0.8713355]
[1719949253192,6.5181,153.42,153.3,0.8713355]
[1719949254213,66.9222,153.44,153.3,0.8713355]
[1719949254214,40.1522,153.44,153.3,0.8713355]
[1719949255213,6.5177,153.43,153.41,17.27976]
[1719949255894,46.6695,153.44,153.41,17.27976]
[1719949256797,6.5176,153.43,153.41,17.27976]
[1719949257514,20.5722,153.44,153.41,17.27976]
[1719949258725,27.0894,153.44,153.41,17.27976]
[1719949259109,20.5722,153.44,153.41,17.27976]
[1719949260004,27.0895,153.44,153.41,17.27976]
[1719949260209,40.1522,153.44,153.41,17.27976]
[1719949260815,6.5176,153.43,153.41,17.27976]
[1719949261606,6.518,153.42,153.41,17.27976]
[1719949261813,6.5178,153.43,153.41,17.27976]
[1719949262120,40.1522,153.44,153.41,17.27976]
[1719949262121,6.518,153.42,153.41,17.27976]
[1719949263417,26.518,153.42,153.41,17.27976]